Cogmind - Beta 14 @@@ ROGUE MODE // 2024.12.15 @ 17:26:15 Player: sercli123 Result: Destroyed by S-27 Virus with Autogun Performance ------------- Evolutions (6) 3000 Regions Visited (16) 3200 Robots Destroyed (157) 785 Value Destroyed (4643) 4643 Prototype IDs (17) 340 Alien Tech Used (0) 0 Bonus (458) 458 TOTAL SCORE: 12426 Bonus ------- High Alert Combat Kills 524 Follower Combat Kills 448 Friendly Fire -514 Cogmind --------- Core Integrity 0/1150 Matter 217/300 Energy 5/100 System Corruption 0% Temperature Cool (0) Movement Core (50) Location -4/Upper Caves Parts ------- > --- POWER (2) -------- (None) > --- PROPULSION (6) --- (None) > --- UTILITY (9) ------ (None) > --- WEAPON (2) ------- (None) > --- INVENTORY (5) ---- Compact Battery (200) Advanced Sensor Array Advanced Reaction Control System Advanced Thermal Shield Advanced Plasma Rifle Peak State ------------ > --- POWER ------------ Neutrino Core Micro Fission Core > --- PROPULSION ------- Improved Medium Treads Armored Medium Treads Biometal Heavy Treads Centrium Wheel Backup Propulsion III > --- UTILITY ---------- Advanced Cryofiber Web Advanced Heat Sink High-capacity Storage Unit Hardened Light Armor Plating Hardened Light Armor Plating Improved Light Armor Plating Advanced Powered Armor Improved Thermal Shield Force Field > --- WEAPON ----------- Enhanced Quantum Rifle Matter Neutralizer > --- INVENTORY -------- Cooled Linear Gravjet Large Storage Unit Compact Battery Advanced Trap Scanner Advanced Sensor Array Quantum Capacitor Advanced Reaction Control System Improved Light Armor Plating Improved Light Armor Plating Improved Light Armor Plating Improved Focal Shield Force Field System Restoration Module Improved Recalibrator Advanced Plasma Rifle Enhanced Nova Cannon Phasing Sabre [Rating: 116] Favorites ----------- Power Antimatter Reactor Engine Improved Ion Engine Power Core Nuclear Core Reactor Antimatter Reactor Propulsion Xenon Bombardment Thruster Treads Heavy Treads Leg Flexi-carbon Leg Wheel Centrium Wheel Hover Unit Aerolev Unit Flight Unit Xenon Bombardment Thruster Utility Improved Light Armor Plating Device Weight Redist. System Storage Medium Storage Unit Processor Signal Interpreter Hackware Hacking Suite Protection Improved Light Armor Plating Weapon Cooled Particle Cannon Energy Gun Enhanced Quantum Rifle Energy Cannon Cooled Particle Cannon Ballistic Gun Heavy Battle Rifle Ballistic Cannon Improved Light Cannon Launcher Heavy Rocket Launcher Impact Weapon Heavy Flail Slashing Weapon Axe Special Melee Weapon Improved Datajack Build | -11 -10 -9 -8 -7 -7 -7 -7 -7 -6 -6 -6 -5 -4 -4 -4 -4 ------- Run | Yrd Mat Mat Mat Fac Was Fac Low Low Fac Was Fac Fac Fac Was Fac Upp Slots Evolved 12 | . . 2 2 2 . . . . 2 . . 2 2 . . . Power 1 | . . . . . . . . . 1 . . . . . . . Propulsion 4 | . . 1 . 1 . . . . 1 . . . 1 . . . Utility 7 | . . 1 2 1 . . . . . . . 2 1 . . . Weapon . | . . . . . . . . . . . . . . . . . Parts Attached 307 | 3 8 49 48 34 1 11 2 . 31 21 . 29 18 21 27 4 Power 24 | 1 . 5 3 4 . 1 . . 3 2 . 1 . 1 2 1 Engine 8 | 1 . 5 2 . . . . . . . . . . . . . Core 14 | . . . 1 4 . 1 . . 3 . . 1 . 1 2 1 Reactor 2 | . . . . . . . . . . 2 . . . . . . Propulsion 75 | 2 3 10 14 14 . 1 2 . 4 5 . 3 9 3 5 . Treads 13 | . . . . 1 . . . . . 2 . 1 4 2 3 . Leg 14 | 1 1 1 4 3 . . . . 1 3 . . . . . . Wheel 8 | 1 . 1 . 1 . . . . . . . 2 2 . 1 . Hover 20 | . 1 6 6 3 . . . . . . . . 3 1 . . Flight 20 | . 1 2 4 6 . 1 2 . 3 . . . . . 1 . Utility 128 | . 2 15 19 8 . 7 . . 14 7 . 20 5 12 16 3 Device 71 | . . 7 10 6 . 3 . . 9 4 . 15 3 2 9 3 Storage 7 | . . 2 . . . 1 . . . . . . . . 4 . Processor 4 | . 1 . 2 . . . . . . 1 . . . . . . Hackware 3 | . . 1 . 2 . . . . . . . . . . . . Protection 43 | . 1 5 7 . . 3 . . 5 2 . 5 2 10 3 . Artifact . | . . . . . . . . . . . . . . . . . Weapon 80 | . 3 19 12 8 1 2 . . 10 7 . 5 4 5 4 . Energy Gun 9 | . 2 2 . . . . . . . . . 1 1 1 2 . Energy Cannon 20 | . . 4 . . . 1 . . 4 6 . 1 . 2 2 . Ballistic Gun 13 | . . 1 4 3 . 1 . . . 1 . 2 1 . . . Ballistic Cannon 11 | . 1 5 2 1 . . . . . . . 1 1 . . . Launcher 13 | . . 3 1 2 1 . . . 6 . . . . . . . Special Weapon . | . . . . . . . . . . . . . . . . . Impact Weapon 9 | . . 4 2 . . . . . . . . . 1 2 . . Slashing Weapon 4 | . . . 2 2 . . . . . . . . . . . . Piercing Weapon . | . . . . . . . . . . . . . . . . . Special Melee Weapon 1 | . . . 1 . . . . . . . . . . . . . Unidentified Prototypes 9 | . . 1 1 2 . 1 . . . . . 1 1 1 1 . Parts Lost 69 | . 1 5 11 8 . . . . 14 1 . 9 12 . 4 4 Power 9 | . . 1 . . . . . . 3 . . 1 1 . 1 2 Propulsion 27 | . 1 2 6 2 . . . . 6 1 . 2 5 . 1 1 Utility 28 | . . 1 5 6 . . . . 3 . . 5 5 . 2 1 Weapon 5 | . . 1 . . . . . . 2 . . 1 1 . . . Highest Loss Streak 5 | . 1 4 5 4 . . . . 5 1 . 4 5 . 3 4 To Critical Strikes . | . . . . . . . . . . . . . . . . . Average Slot Usage (%) 74 | . 58 91 93 85 39 77 92 92 67 48 66 74 42 55 92 81 Engine 2 | . 11 10 7 . . . . . . . . . . 5 1 . Core 3 | . . . 1 6 7 7 7 7 8 . . 4 3 1 8 7 Reactor 1 | . . . . . . . . . . 7 13 5 . . . . Treads 4 | . . . . . . . . . . 8 13 10 3 3 14 18 Leg 2 | . 9 1 2 5 . . . . 1 6 6 1 . . . . Wheel 1 | . 11 1 . 1 . . . . . . . 1 4 . 4 5 Hover 7 | . 3 24 17 10 . . . . . . . . 4 10 4 . Flight 6 | . 2 4 7 8 23 28 30 30 23 . . . . . . . Device 12 | . . 8 16 22 . 10 15 15 14 7 13 21 16 3 13 15 Storage 3 | . . 9 9 6 . 4 7 7 5 . . . . . 4 5 Processor 2 | . 10 10 2 . . . . . . 2 . . . . . . Hackware 1 | . . . 9 7 . . . . . . . . . . . . Protection 11 | . 1 2 6 . . 15 23 23 7 4 6 13 1 21 27 18 Energy Gun 1 | . 5 . . . . . . . . . . . 3 4 7 5 Energy Cannon 1 | . . 1 . . . 4 7 7 2 5 6 . . . 2 5 Ballistic Gun 2 | . . . 6 6 . 1 . . . 2 6 8 . . . . Ballistic Cannon 2 | . 1 12 2 . . . . . . . . 1 3 . . . Peak Build Rating 116 | 3 7 26 37 47 24 43 43 42 53 88 86 94 78 95 116 108 Average Rating 52 | 1 4 18 29 40 21 36 42 42 35 64 86 81 47 57 104 86 On Entrance 39 | . 3 3 26 33 20 21 43 42 42 5 86 86 48 17 95 108 Naked Turns 92 | . . . . 1 . . . . 54 . . . . 33 . 4 Heaviest Build 119 | 3 11 30 34 29 19 30 30 30 46 93 93 109 38 71 119 . Greatest Support 163 | 3 6 30 55 34 18 30 30 30 34 140 140 163 54 75 155 3 Greatest Overweight (x) 4 | . 3 1 2 1 1 . 3 . 3 3 . 3 1 4 1 . Average Overweight (x) . | . . . . . . . . . . . . . . . . . Largest Inventory Capacity 20 | 5 5 10 10 10 5 8 8 8 8 5 5 5 5 5 20 20 Average Capacity 8 | 5 5 9 10 9 5 6 8 8 7 5 5 5 5 5 17 17 Most Carried 20 | 5 5 10 10 10 5 8 8 8 8 5 5 5 5 5 20 20 Average Carried 7 | 3 4 8 8 8 4 5 8 8 6 4 5 3 3 4 13 15 Final Capacity 20 | 5 5 10 10 5 5 8 8 8 5 5 5 5 5 5 20 5 Final Carried 18 | 5 5 10 10 4 5 8 8 8 3 5 5 5 5 5 18 5 Class Distribution -------------------- 63% | Mutant 18% | Scavenger-Mutant 10% | Sprinter 6% | Infiltrator-Mutant Dominant Class ---------------- Mutant | -10/Materials Mutant | -9/Materials Mutant | -8/Materials Mutant | -7/Factory Mutant | -7/Waste Sprinter | -7/Factory Sprinter | -7/Lower Caves Sprinter | -7/Lower Caves Mutant | -6/Factory Scavenger-Mutant | -6/Waste Scavenger-Mutant | -6/Factory Scavenger-Mutant | -5/Factory Infiltrator-Mutant | -4/Factory Mutant | -4/Waste Mutant | -4/Factory Mutant | -4/Upper Caves Resources | -11 -10 -9 -8 -7 -7 -7 -7 -7 -6 -6 -6 -5 -4 -4 -4 -4 ----------- Run | Yrd Mat Mat Mat Fac Was Fac Low Low Fac Was Fac Fac Fac Was Fac Upp Matter Collected 4923 | 230 59 881 787 395 . 405 157 . 298 460 . 609 30 379 233 . Remotely . | . . . . . . . . . . . . . . . . . Salvage Created 5971 | . 157 1096 952 426 . 452 122 . 243 829 . 1256 . . 438 . Parts 325 | . 9 75 69 28 . 29 2 . 19 15 . 56 . . 23 . Haulers Intercepted 9 | . . 4 3 1 . 1 . . . . . . . . . . Recyclers Shooed 6 | . 1 . 1 . . 1 . . 1 . . 2 . . . . Parts Field Recycled . | . . . . . . . . . . . . . . . . . Retrieved Matter . | . . . . . . . . . . . . . . . . . Parts Self-Destructed . | . . . . . . . . . . . . . . . . . Prevented . | . . . . . . . . . . . . . . . . . Kills | -11 -10 -9 -8 -7 -7 -7 -7 -7 -6 -6 -6 -5 -4 -4 -4 -4 ------- Run | Yrd Mat Mat Mat Fac Was Fac Low Low Fac Was Fac Fac Fac Was Fac Upp Combat Hostiles Destroyed 101 | . 3 24 23 10 . 4 . . 12 1 . 17 . . 7 . Melee 1 | . . 1 . . . . . . . . . . . . . . Guns 31 | . . 1 9 7 . . . . . . . 13 . . 1 . Cannons 35 | . 1 16 5 . . 2 . . 1 1 . 4 . . 5 . AOE 32 | . 2 6 9 2 . 2 . . 11 . . . . . . . Classes Destroyed 16 | . 2 8 2 1 . 1 . . . 1 . . . . 1 . Worker 12 | . . 4 2 2 . 1 . . 1 . . 2 . . . . Builder 9 | . . 1 3 . . 3 . . . . . 1 . . 1 . Tunneler 6 | . . . . 1 . 2 . . 2 . . 1 . . . . Hauler 9 | . . 4 3 1 . 1 . . . . . . . . . . Recycler 9 | . . 4 . . . 2 . . . . . 3 . . . . Operator 2 | . . 1 1 . . . . . . . . . . . . . Watcher 9 | . 2 3 2 . . 1 . . . . . 1 . . . . Swarmer 34 | . 3 11 7 4 . 1 . . 4 . . 4 . . . . Cutter 2 | . . . 2 . . . . . . . . . . . . . Grunt 39 | . . 9 9 6 . 2 . . 5 . . 8 . . . . Brawler 2 | . . 1 . . . . . . . . . 1 . . . . Sentry 10 | . . 3 4 . . . . . . . . 1 . . 2 . Specialist 2 | . . . . . . . . . . . . . . . 2 . Hunter 2 | . . . 1 . . . . . 1 . . . . . . . Programmer 9 | . . . . . . 1 . . 2 . . 3 . . 3 . Compactor 1 | . . . . . . . . . . 1 . . . . . . Decomposer 2 | . . . . . . . 2 . . . . . . . . . Best Kill Streak 10 | . 3 8 8 5 . 4 . . 4 1 . 10 . . 3 . Combat Bots Only 6 | . 3 5 6 3 . 2 . . 3 1 . 4 . . 3 . Max Kills in Single Turn 5 | . 2 5 4 2 . 3 1 . 4 1 . 4 . . 1 . Gunslinging . | . . . . . . . . . . . . . . . . . Exploded 4 | . 2 3 4 2 . 2 . . 3 . . . . . . . Melee 1 | . . 1 . . . . . . . . . . . . . . Uniques/NPCs Destroyed . | . . . . . . . . . . . . . . . . . Combat | -11 -10 -9 -8 -7 -7 -7 -7 -7 -6 -6 -6 -5 -4 -4 -4 -4 -------- Run | Yrd Mat Mat Mat Fac Was Fac Low Low Fac Was Fac Fac Fac Was Fac Upp Hostile Shots Fired 1265 | . 7 126 173 116 . 38 . . 201 1 3 196 175 2 181 46 Missed 437 | . 2 49 62 45 . 24 . . 99 . 1 34 58 1 48 14 Damage Taken 13784 | . 100 1036 1628 1572 . 238 . . 1955 42 40 2736 2231 64 1775 367 Core 2858 | . 17 250 207 357 . 18 . . 693 . . 165 958 64 51 78 Absorbed by Shields 923 | . . . . 106 . 11 . . . . . 444 . . 305 57 Reduced by Siege Mode 124 | . . . . . . . . . . . . 124 . . . . Redirected to Shielding 100 | . . . . . . 25 . . 75 . . . . . . . Ignored by Resistances 659 | . . . . . . 8 . . . . . 275 . . 315 61 Regen/Repaired (Parts) 348 | . . 134 18 . . . . . . . . . . 181 15 . Core Remaining (%) 62 | 100 93 37 62 . . . . 46 . . 18 83 . . . . Volleys Fired 413 | . 15 61 56 38 1 48 5 . 47 49 . 68 3 . 16 6 Largest 2 | . 2 2 2 2 2 1 1 . 2 1 . 2 2 . 2 2 Hottest 180 | . 75 128 62 78 78 90 30 . 90 30 . 123 138 . 170 180 Shots Fired 617 | . 19 106 105 55 2 50 5 . 49 49 . 136 6 . 28 7 Gun 311 | . 15 10 79 51 . 12 . . . . . 114 5 . 19 6 Cannon 268 | . 4 90 22 1 . 37 5 . 27 49 . 22 1 . 9 1 Launcher 38 | . . 6 4 3 2 1 . . 22 . . . . . . . Special . | . . . . . . . . . . . . . . . . . Kinetic 374 | . 4 82 101 52 . 12 . . . . . 120 3 . . . Thermal 168 | . . 7 . . . 37 5 . 27 49 . 5 3 . 28 7 Explosive 38 | . . 6 4 3 2 1 . . 22 . . . . . . . Electromagnetic 37 | . 15 11 . . . . . . . . . 11 . . . . Robot Hit Streak 22 | . 7 8 12 8 1 5 3 . 4 8 . 20 7 . 22 1 Robot Miss Streak 7 | . 4 5 4 7 1 2 1 . 5 1 . 4 1 . 2 6 Penetration Max . | . . . . . . . . . . . . . . . . . Secondary Targets 2 | . . . 1 . . . . . . . . 1 . . . . Max Gunslinging Chain 1 | . . . 1 . . . . . . . . 1 . . . . Capacitor 4 | . . . . . . . . . . . . . . . . 4 Shots Hit Robots 415 | . 12 64 84 29 1 21 4 . 17 41 . 111 5 . 25 1 Core Hits 253 | . 7 50 42 31 1 14 2 . 40 9 . 46 1 . 10 . Critical Kills 2 | . . . . . . . . . . . . 1 . . 1 . Critical Parts Destroyed 6 | . . 1 1 . . . . . . . . 3 1 . . . Critical Strikes 13 | . . 2 4 1 . . . . . . . 4 1 . 1 . Meltdown 1 | . . . . . . . . . . . . . . . 1 . Destroy 5 | . . . . . . . . . . . . 4 1 . . . Blast 2 | . . 1 1 . . . . . . . . . . . . . Smash 2 | . . 1 1 . . . . . . . . . . . . . Sever 3 | . . . 2 1 . . . . . . . . . . . . Melee Attacks 58 | . . 7 27 24 . . . . . . . . . . . . Impact 15 | . . 7 8 . . . . . . . . . . . . . Slashing 42 | . . . 18 24 . . . . . . . . . . . . Piercing . | . . . . . . . . . . . . . . . . . Sneak Attacks 12 | . . 3 8 1 . . . . . . . . . . . . Combat Hostiles . | . . . . . . . . . . . . . . . . . Follow-up Attacks . | . . . . . . . . . . . . . . . . . Damage Inflicted 16604 | . 336 2323 2724 1184 206 1035 111 . 3342 1157 . 3176 68 . 919 23 Guns 4383 | . 179 111 841 502 . 142 . . . . . 2013 68 . 504 23 Cannons 4657 | . 19 1049 329 . . 411 111 . 533 1157 . 702 . . 346 . Explosions 6178 | . 128 918 641 533 206 482 . . 2809 . . 461 . . . . Melee 1307 | . . 245 913 149 . . . . . . . . . . . . Ramming 79 | . 10 . . . . . . . . . . . . . 69 . Kinetic 5149 | . 19 941 1170 502 . 142 . . . . . 2354 21 . . . Thermal 4397 | . 128 376 . . . 806 111 . 674 1157 . 225 47 . 850 23 Explosive 4976 | . . 630 641 283 206 87 . . 2668 . . 461 . . . . Electromagnetic 696 | . 179 131 . 250 . . . . . . . 136 . . . . Impact 572 | . . 245 327 . . . . . . . . . . . . . Slashing 735 | . . . 586 149 . . . . . . . . . . . . Piercing . | . . . . . . . . . . . . . . . . . Highest Corruption 8 | . . . . 8 8 8 8 8 . . . 4 1 1 2 . Average Corruption 3 | . . . . 7 8 8 8 8 . . . 1 1 1 1 . Corruption Purged 2 | . . . . . . . . . . . . . . . 2 . Corruption Blocked . | . . . . . . . . . . . . . . . . . Effects 58 | . . . . 4 2 23 9 1 . . . 6 . 4 9 . Message Errors 14 | . . . . . 1 4 . . . . . 3 . 1 5 . Matter Fused 18 | . . . . 2 1 6 4 . . . . 2 . 1 2 . Heat Flow Errors 6 | . . . . . . 2 2 . . . . 1 . 1 . . Energy Discharges 7 | . . . . . . 4 1 . . . . . . 1 1 . Parts Rejected 1 | . . . . 1 . . . . . . . . . . . . Data Loss (minor) 4 | . . . . 1 . 1 1 1 . . . . . . . . Data Loss (major) 5 | . . . . . . 4 1 . . . . . . . . . Misfires 3 | . . . . . . 2 . . . . . . . . 1 . Overload Shots 31 | . . . . . . 12 . . 14 . . 5 . . . . Effects 1 | . . . . . . . . . . . . 1 . . . . Short Circuit 1 | . . . . . . . . . . . . 1 . . . . Overflow Damage 1269 | . . 208 475 60 . 120 49 . 170 54 . 133 . . . . Projectiles 228 | . . . 31 . . 16 49 . 32 54 . 46 . . . . Explosions 464 | . . 120 15 . . 104 . . 138 . . 87 . . . . Melee 577 | . . 88 429 60 . . . . . . . . . . . . Knockbacks 20 | . . 9 7 . . . . . . . . 4 . . . . Impact 2 | . . 1 1 . . . . . . . . . . . . . Kinetic 15 | . . 7 4 . . . . . . . . 4 . . . . Secondary 3 | . . 1 2 . . . . . . . . . . . . . Self-Inflicted Damage 663 | . 64 187 . . . . . . 220 . . 192 . . . . Shots 14 | . 2 5 . . . . . . 5 . . 2 . . . . Rammed 9 | . 1 . . . . . . . . . . . . . 8 . Targets Rammed 9 | . 1 . . . . . . . . . . . . . 8 . Kicked . | . . . . . . . . . . . . . . . . . Crushed . | . . . . . . . . . . . . . . . . . Highest Temperature 374 | . 114 240 236 24 15 329 269 46 310 112 21 374 34 224 285 328 Average Temperature 72 | . 37 50 52 5 10 99 54 23 113 10 4 117 23 113 98 159 Received Heat Transfer 3301 | . 6 228 657 380 . 24 . . 438 . 21 779 165 . 603 . Effects 5 | . . . . . . 2 . . 1 . . 2 . . . . Shutdowns 1 | . . . . . . . . . . . . 1 . . . . Energy Bleed 3 | . . . . . . 1 . . 1 . . 1 . . . . Interference 1 | . . . . . . 1 . . . . . . . . . . Siege Activations 7 | . . . . . . . . . . . . 6 1 . . . Total Turns 183 | . . . . . . . . . . . . 176 7 . . . Longest Duration 40 | . . . . . . . . . . . . 40 7 . . . Robots Corrupted 2 | . . . 2 . . . . . . . . . . . . . Combat Hostiles . | . . . . . . . . . . . . . . . . . Parts Fried 6 | . 2 2 1 . . . . . . . . 1 . . . . Impact Corruptions 9 | . . 2 7 . . . . . . . . . . . . . Robots Melted 1 | . . . . . . . . . . . . . . . 1 . Combat Hostiles 1 | . . . . . . . . . . . . . . . 1 . Parts Melted 7 | . 2 . . . . . . . . . . . . . 5 . Heat Transferred 4928 | . 150 348 . . . 807 148 . 609 1591 . 200 74 . 951 50 Parts Sabotaged . | . . . . . . . . . . . . . . . . . Parts Stolen . | . . . . . . . . . . . . . . . . . Parts Stripped . | . . . . . . . . . . . . . . . . . Power Chain Reactions 4 | . 2 2 . . . . . . . . . . . . . . Alert | -11 -10 -9 -8 -7 -7 -7 -7 -7 -6 -6 -6 -5 -4 -4 -4 -4 ------- Run | Yrd Mat Mat Mat Fac Was Fac Low Low Fac Was Fac Fac Fac Was Fac Upp Peak Influence 988 | . 223 988 804 583 219 693 . . 933 326 . 306 296 202 202 . Initial 369 | . . 93 369 365 187 149 . . 224 326 . . 130 103 . . Average 283 | . 83 553 549 448 205 434 . . 504 141 . 113 122 58 62 . Maximum Alert Level 3 | . 1 3 3 2 1 2 . . 3 1 . 1 1 1 1 . Low Security (%) 48 | 100 78 6 . . 23 22 . . . 67 100 86 83 88 95 . Level 1 20 | . 21 8 19 48 76 16 . . 52 32 . 13 16 11 4 . Level 2 25 | . . 60 71 51 . 61 . . 22 . . . . . . . Level 3 5 | . . 24 8 . . . . . 25 . . . . . . . Level 4 . | . . . . . . . . . . . . . . . . . Level 5 . | . . . . . . . . . . . . . . . . . High Security . | . . . . . . . . . . . . . . . . . Max Security . | . . . . . . . . . . . . . . . . . Squads Dispatched 46 | . 1 4 12 4 . 7 . . 7 . . 4 2 . 5 . Investigation 15 | . 1 3 2 3 . 2 . . 2 . . 1 1 . . . Extermination 8 | . . . . . . 2 . . 1 . . 2 1 . 2 . Reinforcement 15 | . . 1 5 1 . 3 . . 1 . . 1 . . 3 . Assault 2 | . . . 2 . . . . . . . . . . . . . Garrison 6 | . . . 3 . . . . . 3 . . . . . . . Intercept . | . . . . . . . . . . . . . . . . . Searches Triggered 1 | . . . . . . 1 . . . . . . . . . . Construction Impeded 2 | . . . . . . . . . . . . . . . 2 . Haulers Reinforced 2 | . . . . 1 . . . . 1 . . . . . . . Active Scanning Responses . | . . . . . . . . . . . . . . . . . Cargo Convoy Interrupts . | . . . . . . . . . . . . . . . . . Stealth | -11 -10 -9 -8 -7 -7 -7 -7 -7 -6 -6 -6 -5 -4 -4 -4 -4 --------- Run | Yrd Mat Mat Mat Fac Was Fac Low Low Fac Was Fac Fac Fac Was Fac Upp Distress Signals 15 | . . 5 2 . . 2 . . 4 . . . 1 . 1 . Communications Jammed 9 | . . . . . . . . . . . . . 9 . . . Distress Signals 9 | . . . . . . . . . . . . . 9 . . . Times Spotted 312 | . 7 49 62 29 6 32 . . 44 2 4 27 24 7 15 4 Peak Tracking Total 17 | . 3 10 11 8 6 7 . . 9 1 4 4 17 6 5 4 Tactical Retreats 62 | . 2 9 13 8 . 11 . . 9 1 . . 6 1 2 . Traps | -11 -10 -9 -8 -7 -7 -7 -7 -7 -6 -6 -6 -5 -4 -4 -4 -4 ------- Run | Yrd Mat Mat Mat Fac Was Fac Low Low Fac Was Fac Fac Fac Was Fac Upp Traps Triggered 11 | . . . . 5 . 1 . . 2 . . 1 1 . 1 . Indirectly . | . . . . . . . . . . . . . . . . . Trap Hack Attempts . | . . . . . . . . . . . . . . . . . Triggered . | . . . . . . . . . . . . . . . . . Disarmed . | . . . . . . . . . . . . . . . . . Reprogrammed . | . . . . . . . . . . . . . . . . . Reused . | . . . . . . . . . . . . . . . . . Traps Extracted . | . . . . . . . . . . . . . . . . . Installed . | . . . . . . . . . . . . . . . . . Triggered . | . . . . . . . . . . . . . . . . . Machines | -11 -10 -9 -8 -7 -7 -7 -7 -7 -6 -6 -6 -5 -4 -4 -4 -4 ---------- Run | Yrd Mat Mat Mat Fac Was Fac Low Low Fac Was Fac Fac Fac Was Fac Upp Machines Disabled 36 | . 1 9 . 1 . 13 . . 9 . . 2 . . 1 . Max in Single Turn 10 | . 1 7 . 1 . 10 . . 2 . . 2 . . . . Garrison Access 2 | . . . 1 . . . . . . . . . . . 1 . Machines Repaired . | . . . . . . . . . . . . . . . . . Machines Dismantled . | . . . . . . . . . . . . . . . . . Machines Sabotaged . | . . . . . . . . . . . . . . . . . Overloaded Fab Kills . | . . . . . . . . . . . . . . . . . Hacking | -11 -10 -9 -8 -7 -7 -7 -7 -7 -6 -6 -6 -5 -4 -4 -4 -4 --------- Run | Yrd Mat Mat Mat Fac Was Fac Low Low Fac Was Fac Fac Fac Was Fac Upp Machines Accessed 56 | . 4 9 11 3 . 11 . . 7 . . 1 6 . 4 . Terminals 34 | . 3 7 7 . . 7 . . 4 . . . 3 . 3 . Fabricators 7 | . . . . 2 . 3 . . 1 . . . 1 . . . Repair Stations 3 | . . 1 1 . . . . . . . . 1 . . . . Recycling Units 6 | . 1 . 2 1 . . . . 1 . . . 1 . . . Scanalyzers 2 | . . 1 . . . . . . . . . . 1 . . . Garrison Access 4 | . . . 1 . . 1 . . 1 . . . . . 1 . Total Hacks 158 | . 9 42 33 10 . 17 . . 14 . . 3 17 . 13 . Successful 81 | . 3 26 15 6 . 7 . . 6 . . 1 11 . 6 . Failed 75 | . 6 16 18 4 . 10 . . 8 . . 2 6 . 5 . Catastrophic 18 | . . 5 5 1 . 2 . . 3 . . . 1 . 1 . Database Lockouts 2 | . . . . . . . . . . . . . . . 2 . Manual 32 | . . 15 6 . . 4 . . 3 . . . . . 4 . Terminals 86 | . 8 23 20 . . 11 . . 7 . . . 5 . 12 . Fabricators 16 | . . . . 7 . 5 . . 2 . . . 2 . . . Repair Stations 14 | . . 8 3 . . . . . . . . 3 . . . . Recycling Units 17 | . 1 . 8 3 . . . . 4 . . . 1 . . . Scanalyzers 20 | . . 11 . . . . . . . . . . 9 . . . Garrison Access 5 | . . . 2 . . 1 . . 1 . . . . . 1 . Terminal Hacks 32 | . 2 9 8 . . 3 . . 2 . . . 3 . 5 . Record 4 | . . . . . . . . . . . . . 1 . 3 . Robot Analysis 1 | . 1 . . . . . . . . . . . . . . . Prototype ID Bank 4 | . 1 3 . . . . . . . . . . . . . . Open DSF 5 | . . . . . . 3 . . 1 . . . 1 . . . Branch Access Points 1 | . . . . . . . . . . . . . . . 1 . Emergency Access Points 3 | . . . 2 . . . . . . . . . 1 . . . Alert Level 6 | . . 3 2 . . . . . . . . . . . 1 . Unreport Threat 5 | . . 2 3 . . . . . . . . . . . . . Locate Traps 2 | . . . 1 . . . . . 1 . . . . . . . Recall Investigation 1 | . . 1 . . . . . . . . . . . . . . Fabricator Hacks 12 | . . . . 4 . 4 . . 2 . . . 2 . . . Network Status 2 | . . . . 1 . 1 . . . . . . . . . . Load Schematic 6 | . . . . 2 . 2 . . 1 . . . 1 . . . Build 4 | . . . . 1 . 1 . . 1 . . . 1 . . . Repair Station Hacks 9 | . . 6 2 . . . . . . . . 1 . . . . Scan Component 5 | . . 3 1 . . . . . . . . 1 . . . . Repair 4 | . . 3 1 . . . . . . . . . . . . . Recycling Unit Hacks 10 | . 1 . 5 2 . . . . 2 . . . . . . . Report Inventory 5 | . 1 . 3 1 . . . . . . . . . . . . Retrieve Matter 1 | . . . . . . . . . 1 . . . . . . . Retrieve Components 4 | . . . 2 1 . . . . 1 . . . . . . . Scanalyzer 17 | . . 11 . . . . . . . . . . 6 . . . Insert Component 8 | . . 5 . . . . . . . . . . 3 . . . Analyze 9 | . . 6 . . . . . . . . . . 3 . . . Garrison Access Hacks 1 | . . . . . . . . . . . . . . . 1 . Seal Access 1 | . . . . . . . . . . . . . . . 1 . Unauthorized Hacks . | . . . . . . . . . . . . . . . . . Terminals . | . . . . . . . . . . . . . . . . . Fabricators . | . . . . . . . . . . . . . . . . . Repair Stations . | . . . . . . . . . . . . . . . . . Recycling Units . | . . . . . . . . . . . . . . . . . Scanalyzers . | . . . . . . . . . . . . . . . . . Garrison Access . | . . . . . . . . . . . . . . . . . Data Cores Recovered . | . . . . . . . . . . . . . . . . . Used . | . . . . . . . . . . . . . . . . . Hacking Detections 42 | . 3 7 9 2 . 7 . . 5 . . 1 5 . 3 . Full Trace Events 17 | . 2 5 3 2 . 2 . . 1 . . 1 1 . . . Feedback Events . | . . . . . . . . . . . . . . . . . Feedback Blocked . | . . . . . . . . . . . . . . . . . Robot Schematics Acquired . | . . . . . . . . . . . . . . . . . Robots Built . | . . . . . . . . . . . . . . . . . Authchips . | . . . . . . . . . . . . . . . . . Time . | . . . . . . . . . . . . . . . . . Total Robot Build Rating . | . . . . . . . . . . . . . . . . . Part Schematics Acquired 8 | . . 5 . . . . . . . . . . 3 . . . Parts Built 5 | . . . . 1 . 2 . . 1 . . . 1 . . . Authchips . | . . . . . . . . . . . . . . . . . Time 410 | . . . . 116 . 62 . . 116 . . . 116 . . . Total Part Build Rating 13 | . . . . 3 . 4 . . 3 . . . 3 . . . Parts Repaired 4 | . . 3 1 . . . . . . . . . . . . . Time 184 | . . 152 32 . . . . . . . . . . . . . Parts Recycled . | . . . . . . . . . . . . . . . . . Recycled Matter . | . . . . . . . . . . . . . . . . . Retrieved Matter . | . . . . . . . . . . . . . . . . . Retrieved Components 18 | . . . 15 3 . . . . . . . . . . . . Parts Scanalyzed 8 | . . 5 . . . . . . . . . . 3 . . . Part Schematics Acquired 8 | . . 5 . . . . . . . . . . 3 . . . Parts Damaged 1 | . . . . . . . . . . . . . 1 . . . Bothacking | -11 -10 -9 -8 -7 -7 -7 -7 -7 -6 -6 -6 -5 -4 -4 -4 -4 ------------ Run | Yrd Mat Mat Mat Fac Was Fac Low Low Fac Was Fac Fac Fac Was Fac Upp Used RIF Installer . | . . . . . . . . . . . . . . . . . Robots Hacked 1 | . . . 1 . . . . . . . . . . . . . Non-combat 1 | . . . 1 . . . . . . . . . . . . . Combat . | . . . . . . . . . . . . . . . . . Robot Hacks Applied 1 | . . . 1 . . . . . . . . . . . . . parse_system 1 | . . . 1 . . . . . . . . . . . . . Relay Couplers Released . | . . . . . . . . . . . . . . . . . Fabnet Peak Effective % . | . . . . . . . . . . . . . . . . . Robots Rewired . | . . . . . . . . . . . . . . . . . Allies Hacked 2 | . . . . . . . . . . . . . . . 2 . Hacks Repelled . | . . . . . . . . . . . . . . . . . Allies | -11 -10 -9 -8 -7 -7 -7 -7 -7 -6 -6 -6 -5 -4 -4 -4 -4 -------- Run | Yrd Mat Mat Mat Fac Was Fac Low Low Fac Was Fac Fac Fac Was Fac Upp Total Allies 19 | . . . . . 1 . . . . . . . . 18 . . Largest Group 18 | . . . . . 1 . . . . . . . . 18 8 . Highest-Rated Group 656 | . . . . . 31 . . . . . . . . 656 338 . Highest-Rated Ally 50 | . . . . . 31 . . . . . . . . 50 50 . Total Orders . | . . . . . . . . . . . . . . . . . Ally Attacks 166 | . . . . . 13 . . . . . . . . 115 38 . Total Damage 6522 | . . . . . 170 . . . . . . . . 4744 1608 . Kills 14 | . . . . . . . . . . . . . . 7 7 . Allies Corrupted 3 | . . . . . . . . . . . . . . . 3 . Allies Melted . | . . . . . . . . . . . . . . . . . Intel | -11 -10 -9 -8 -7 -7 -7 -7 -7 -6 -6 -6 -5 -4 -4 -4 -4 ------- Run | Yrd Mat Mat Mat Fac Was Fac Low Low Fac Was Fac Fac Fac Was Fac Upp Robot Analysis Total 1 | . 1 . . . . . . . . . . . . . . . Derelict Logs Recovered . | . . . . . . . . . . . . . . . . . Drone Launches . | . . . . . . . . . . . . . . . . . Drone Recoveries . | . . . . . . . . . . . . . . . . . Exploration | -11 -10 -9 -8 -7 -7 -7 -7 -7 -6 -6 -6 -5 -4 -4 -4 -4 ------------- Run | Yrd Mat Mat Mat Fac Was Fac Low Low Fac Was Fac Fac Fac Was Fac Upp Turns Passed 10023 | 32 259 1156 1094 579 60 787 241 27 790 1224 53 1164 355 970 1211 21 Spaces Moved 9571 | 42 366 1199 1076 598 128 1504 539 87 1110 862 34 527 345 551 601 2 Core 945 | 42 218 . 2 2 . . 2 . 157 290 . . 128 102 . 2 Treads 1872 | . . . . . . . . . . 556 34 432 29 220 601 . Legs 44 | . . 10 18 . . . . . . 16 . . . . . . Wheels 397 | . . 139 . 34 . . . . . . . 95 129 . . . Hover 2259 | . 75 890 732 274 . . . . . . . . 59 229 . . Flight 4054 | . 73 160 324 288 128 1504 537 87 953 . . . . . . . Fastest Speed 27 | 50 50 30 34 31 34 31 31 31 27 50 160 105 50 50 145 50 Average Speed 70 | 50 55 52 53 48 35 31 31 31 37 123 160 153 85 126 156 50 Slowest Speed 320 | 50 200 190 166 130 114 34 200 31 200 200 160 320 250 250 225 50 Overloaded Moves . | . . . . . . . . . . . . . . . . . Propulsion Burnouts . | . . . . . . . . . . . . . . . . . Robots Hopped 3 | . . . . . . 1 1 . 1 . . . . . . . Cave-ins Triggered 2 | . . . . 2 . . . . . . . . . . . . Exploration Rate (%) 39 | 4 58 59 75 12 82 34 67 21 16 96 1 16 14 97 9 5 Regions Visited 16 Branch Regions 3 Pre-discovered Areas . | . . . . . . . . . . . . . . . . . Known Exits Taken 3 | . 1 1 . . . . . . . . . . . . 1 . Unknown Exits Taken 7 | 1 . . 1 . . 1 1 1 . . 1 1 . . . . Scrap Searched 1 | . . . . . . . 1 . . . . . . . . . Spaces Dug 45 | . . 2 12 13 . 12 . . 6 . . . . . . . Terrain Destroyed 487 | . 8 95 48 34 22 17 1 . 221 1 . 35 1 . 3 1 Melee 27 | . . 2 12 13 . . . . . . . . . . . . Projectile 33 | . . 1 . . . 13 1 . 8 1 . 4 1 . 3 1 AOE 427 | . 8 92 36 21 22 4 . . 213 . . 31 . . . . Terrain Rammed . | . . . . . . . . . . . . . . . . . Walls Destroyed . | . . . . . . . . . . . . . . . . . Machines Disabled . | . . . . . . . . . . . . . . . . . Actions | -11 -10 -9 -8 -7 -7 -7 -7 -7 -6 -6 -6 -5 -4 -4 -4 -4 --------- Run | Yrd Mat Mat Mat Fac Was Fac Low Low Fac Was Fac Fac Fac Was Fac Upp Total 12170 | 52 406 1594 1459 810 141 1769 602 86 1426 974 33 744 395 822 838 19 Wait 1473 | . 2 230 193 66 7 175 56 . 227 5 . 99 19 236 153 5 Move 9552 | 41 365 1198 1075 598 127 1501 536 86 1108 861 33 526 345 550 600 2 Hop 3 | . . . . . . 1 1 . 1 . . . . . . . Pick Up 160 | 8 5 27 32 11 2 11 . . 3 16 . 14 5 2 24 . Fast Attach 66 | . 1 9 5 8 . 4 1 . 2 8 . 2 9 14 2 1 Attach 124 | 3 5 14 20 14 1 4 . . 14 12 . 12 8 6 9 2 Detach 49 | . 5 4 4 6 1 1 1 . 7 7 . 1 4 3 3 2 Swap 117 | . 2 26 23 12 . 3 1 . 15 1 . 15 1 1 16 1 Drop 100 | . 5 18 24 7 2 5 1 . 2 11 . 7 1 10 7 . Fire 413 | . 15 61 56 38 1 48 5 . 47 49 . 68 3 . 16 6 Melee 58 | . . 7 27 24 . . . . . . . . . . . . Ram 1 | . 1 . . . . . . . . . . . . . . . Kick . | . . . . . . . . . . . . . . . . . Crush 8 | . . . . . . . . . . . . . . . 8 . Escape Stasis 42 | . . . . 26 . 16 . . . . . . . . . . Rewire 4 | . . . . . . . . . . 4 . . . . . . Trap . | . . . . . . . . . . . . . . . . . Miscellaneous . | . . . . . . . . . . . . . . . . . Route ------- -11/Scrapyard -10/Materials (discovered 4 exits: *Mat x2 / *Min x2) -9/Materials -8/Materials -7/Factory -7/Waste -7/Factory -7/Lower Caves -7/Lower Caves -6/Factory -6/Waste -6/Factory -5/Factory -4/Factory -4/Waste -4/Factory (discovered 4 exits: *Upp x2 / Ext x2) -4/Upper Caves History --------- Turn | Location | Event 15 | -11/Scrapyard | Discovered new exit (range 16) 33 | -11/Scrapyard | Entered Materials 40 | -10/Materials | Discovered new exit (range 12) 66 | -10/Materials | Discovered new exit (range 9) 180 | -10/Materials | Discovered new exit (range 15) 202 | -10/Materials | Identified exit to Mines 267 | -10/Materials | Discovered new exit (range 5) 270 | -10/Materials | Identified exit to Materials 292 | -10/Materials | Entered another Materials area 292 | -9/Materials | Evolved 2 slots: Propulsion x1, Utility x1 335 | -9/Materials | Build established: Mutant 425 | -9/Materials | Lost 4 parts (1p2n1u) 869 | -9/Materials | Repaired Aerolev Unit 930 | -9/Materials | Repaired Aerolev Unit 1024 | -9/Materials | Discovered new exit (range 16) 1049 | -9/Materials | Core integrity fell below 50% 1188 | -9/Materials | Identified exit to Materials 1345 | -9/Materials | Repaired Imp. Ion Engine 1448 | -9/Materials | Entered another Materials area 1448 | -8/Materials | Evolved 2 slots: Utility x2 1633 | -8/Materials | Garrison activated, responded to threat 1848 | -8/Materials | First assault squad dispatched 2140 | -8/Materials | Lost 5 parts (3n2u) 2471 | -8/Materials | Discovered new exit (range 15) 2534 | -8/Materials | Repaired Weight Redist. System 2542 | -8/Materials | Entered Factory 2542 | -7/Factory | Evolved 2 slots: Propulsion x1, Utility x1 2980 | -7/Factory | Crushed by falling debris 2983 | -7/Factory | Crushed by falling debris 3005 | -7/Factory | Fabricated Aerolev Unit? 3014 | -7/Factory | Lost 4 parts (1n3u) 3075 | -7/Factory | Released all parts (9) 3090 | -7/Factory | Core integrity fell below 50% 3121 | -7/Factory | Sucked down chute 3121 | -7/Factory | Entered Waste 3122 | -7/Waste | Met a frightened Derelict 3126 | -7/Waste | Spotted C-40 Crusher 3149 | -7/Waste | Spotted C-40 Crusher 3156 | -7/Waste | Spotted C-40 Crusher 3157 | -7/Waste | Spotted C-40 Crusher 3164 | -7/Waste | Spotted C-40 Crusher 3164 | -7/Waste | Spotted C-40 Crusher 3177 | -7/Waste | Discovered new exit (range 11) 3181 | -7/Waste | Entered Factory 3501 | -7/Factory | Fabricated Weight Redist. System? 3581 | -7/Factory | Search patrols dispatched 3628 | -7/Factory | Build established: Sprinter 3964 | -7/Factory | Discovered new exit (range 5) 3968 | -7/Factory | Entered Lower Caves 4097 | -7/Lower Caves | Encountered a Warlord checkpoint 4206 | -7/Lower Caves | Discovered new exit (range 7) 4209 | -7/Lower Caves | Entered another Lower Caves area 4232 | -7/Lower Caves | Discovered new exit (range 12) 4236 | -7/Lower Caves | Entered Factory 4236 | -6/Factory | Evolved 2 slots: Power x1, Propulsion x1 4627 | -6/Factory | Garrison activated, responded to threat 4674 | -6/Factory | Fabricated Aerolev Unit? 4777 | -6/Factory | Lost 5 parts (1p1n3u) 4867 | -6/Factory | Lost 5 parts (1p3n1w) 4898 | -6/Factory | Released all parts (5) 4908 | -6/Factory | Core integrity fell below 50% 4986 | -6/Factory | Build established: Mutant 5017 | -6/Factory | Core integrity fell below 20% 5026 | -6/Factory | Sucked down chute 5026 | -6/Factory | Entered Waste 5026 | -6/Waste | The area was eerily silent 5074 | -6/Waste | Found Damper Plating 5116 | -6/Waste | A Compactor rumbled back to life 5116 | -6/Waste | Crushed by Compactor (1 part destroyed, 1 dropped) 5116 | -6/Waste | Spotted C-40 Crusher 5165 | -6/Waste | Discovered new exit (range 12) 5259 | -6/Waste | Destroyed C-40 Crusher 5828 | -6/Waste | Build established: Scavenger-Mutant 6250 | -6/Waste | Entered Factory 6273 | -6/Factory | Discovered new exit (range 9) 6303 | -6/Factory | Entered another Factory area 6303 | -5/Factory | Evolved 2 slots: Utility x2 6948 | -5/Factory | Lost 3 parts (1n1u1w) 7259 | -5/Factory | Build established: Infiltrator-Mutant 7363 | -5/Factory | Discovered new exit (range 11) 7467 | -5/Factory | Entered another Factory area 7467 | -4/Factory | Evolved 2 slots: Propulsion x1, Utility x1 7483 | -4/Factory | Lost 4 parts (1p3u) 7543 | -4/Factory | Spotted B-86 Titan 7587 | -4/Factory | Lost 5 parts (3n2u) 7706 | -4/Factory | Fabricated Aerolev Unit? 7706 | -4/Factory | Released all parts (8) 7729 | -4/Factory | Core integrity fell below 50% 7736 | -4/Factory | Lost 3 parts (1p1u1w) 7811 | -4/Factory | Spotted B-86 Titan 7813 | -4/Factory | Core integrity fell below 20% 7822 | -4/Factory | Sucked down chute 7822 | -4/Factory | Entered Waste 7845 | -4/Waste | Spotted C-40 Crusher 7990 | -4/Waste | Build established: Mutant 8021 | -4/Waste | Spotted C-40 Crusher 8041 | -4/Waste | Spotted C-40 Crusher 8042 | -4/Waste | Spotted C-40 Crusher 8052 | -4/Waste | Released all parts (5) 8058 | -4/Waste | Spotted C-40 Crusher 8059 | -4/Waste | Spotted C-40 Crusher 8085 | -4/Waste | Warlord forces began an assault 8085 | -4/Waste | Found Broken Adv. Powered Armor 8093 | -4/Waste | Allies destroyed C-40 Crusher 8099 | -4/Waste | Allies destroyed C-40 Crusher 8106 | -4/Waste | Discovered new exit (range 15) 8110 | -4/Waste | Allies destroyed C-40 Crusher 8111 | -4/Waste | Allies destroyed C-40 Crusher 8117 | -4/Waste | Allies destroyed C-40 Crusher 8117 | -4/Waste | Allies destroyed C-40 Crusher 8445 | -4/Waste | Found Prototype Reactor 8792 | -4/Waste | Entered Factory 8792 | -4/Factory | Accompanied by 8 allies 9118 | -4/Factory | Spotted B-86 Titan 9198 | -4/Factory | Central database locked down 9198 | -4/Factory | Central database locked down 9350 | -4/Factory | Lost 3 allies 9391 | -4/Factory | Found Quantum Capacitor 9490 | -4/Factory | Lost 3 allies 9715 | -4/Factory | Lost 3 parts (1n2u) 9926 | -4/Factory | Discovered new exit (range 11) 9976 | -4/Factory | Identified exit to Upper Caves 9976 | -4/Factory | Identified exit to Extension 10003 | -4/Factory | Entered Upper Caves 10020 | -4/Upper Caves | Released all parts (15) 10024 | -4/Upper Caves | Destroyed by S-27 Virus with Autogun Last Messages --------------- GOAL=ESCAPE 10010_ Hrd. Light Armor Plating destroyed. 10011_ Imp. Medium Treads destroyed. 10017_ Neutrino Core destroyed. 10020_ Released Imp. Focal Shield. 10020_ Released Quantum Capacitor. 10020_ Released Imp. Light Armor Plating. 10020_ Released Plasma Rifle. 10020_ Released Imp. Treads. 10020_ Released Imp. Light Armor Plating. 10020_ Released Mic. Fission Core. 10020_ Released Hcp. Storage Unit. 10020_ Released Centrium Wheel. 10020_ Released Adv. Cryofiber Web. 10020_ Released Biometal Heavy Treads. 10020_ Released Arm. Medium Treads. 10020_ Released Matter Neutralizer. 10020_ Released Adv. Heat Sink. 10023_ Acquired Mic. Fission Core. 10023_ Mic. Fission Core destroyed. Map ----- +----------------------------------------------------+ | ?????????????????????????????????????????????????? | | ?????????????????????????????????????????????????? | | ?????????????????????????????????????????????????? | | ?????????????????????????????????????????????????? | | ?????????????????????????????????????????????????? | | ?????????????????????????????????????????????????? | | ?????????????????????????????????????????????????? | | ?????????????????????????????????????????????????? | | ?????????????????????????????????????????????????? | | ?????????????????????????????????????????????????? | | ?????????????????????????????????????????????????? | | ?????????????????????????????????????????????????? | | ?????????????????????????????????????????????????? | | ?????????????????????????????????????????????????? | | ?????????????????????????????????????????????????? | | ?????????????????????????????????????????????????? | | ?????????????????????????????????????????????????? | | ?????????????????????????????????????????????????? | | ?????????????????????????????????????????????????? | | ?????????????????????????????????????????????????? | | ???????????????#####?????????????????????????????? | | ???????????????#; ##???????????????????????????? | | ??????????????## #??????????????????????????? | | ?????????????## s ###???????????????????????? | | ?????????????? ss!!##??????????????????????? | | ????????????????????#s!![@##?????????????????????? | | ????????????????????#=]!!!!#?????????????????????? | | ???????????????????# !!=!!= ????????????????? | | ????????????????# [!/!! ## #?????????????? | | ????????????????# ]= ##?????????????????? | | ???????????????# ##??????????????????? | | ?????????????? ##???????????????????? | | ???????????? #????????????????????? | | ??????????? ????????????????????? | | ???????????? ???????????????????? | | ???????????? ???????????????????? | | ?????????????# ## ??????????????????? | | ?????????????## #?## ??????????????????? | | ??????????????? ???# ?????????????????? | | ?????????????????????# ?????????????????? | | ????????????????????? ???????????????????? | | ?????????????????????? ##?????????????????????? | | ?????????????????????????????????????????????????? | | ?????????????????????????????????????????????????? | | ?????????????????????????????????????????????????? | | ?????????????????????????????????????????????????? | | ?????????????????????????????????????????????????? | | ?????????????????????????????????????????????????? | | ?????????????????????????????????????????????????? | | ?????????????????????????????????????????????????? | +----------------------------------------------------+ Best States ------------- Heat Dissipation 81 Coolant Potential 65 Energy Generation 37 Energy Capacity 575 Matter Stores 300 Matter Capacity 300 Sight Range 16 Robot Scan Range 16 Terrain Scan Density 10 ECM Strength 2 Jamming Range 14 Cloak Strength 3 Additional Mass Support 6 Base Temperature (-) 200 Armor Coverage 4100 Resistance: KI 25 Resistance: TH 25 Resistance: EM 90 Propulsion Shielding 66 Weapon Cycling 15 Phase Shifting 5 Evasion (%) 71 Targeting Accuracy 5 Launcher Accuracy 30 Target Analysis 5 Recoil Reduction 5 Offensive Hacking 10 Defensive Hacking 20 Item Schematics ----------------- Aerolev Unit | -9/Materials | Scanalyzed Weight Redist. System | -9/Materials | Scanalyzed Lgt. Armor Plating | -9/Materials | Scanalyzed Hacking Suite | -9/Materials | Scanalyzed Sensor Array | -9/Materials | Scanalyzed Imp. Treads | -4/Factory | Scanalyzed Mass Driver | -4/Factory | Scanalyzed Imp. Gyrokinetic Inverter | -4/Factory | Scanalyzed Robot Schematics ------------------ None Fabricated ------------ Aerolev Unit | x1 | -7/Factory Weight Redist. System | x2 | -7/Factory Aerolev Unit | x1 | -6/Factory Aerolev Unit | x1 | -4/Factory Alien Tech Used ----------------- None Achievements -------------- Below Overkill Prolific Hacker Turtlemind Challenges ------------ None Game ------ Seed BoltSapperFlail Manual? 0 Play Time 06:49:16 Cumulative 57.0 hours Start 2024.12.14 @ 19:23:34 End 2024.12.15 @ 17:26:15 Sessions 5 Manual Loads 0 Difficulty Rogue Special Mode None Game No. 26 Rogue 26 Adventurer 0 Explorer 0 Win Type - Total 0 Types 0/0/0/0/0/0/0/0/0 Lore% 20 Gallery% 33 Achievement% 30 Wizard Run 0 Options --------- Layout 0 ASCII 0 Keyboard 0 Movement Mouse Keybinds 0 Fullscreen 2 Font 24/Smallcaps Map View 76x50 Zoom Use 5% Tactical HUD 1 Map Filters NONE Filters NONE Steam 1 RUN: b9506024-0a55-4308-bb90-49e666da214b